[Event "Titled Tuesday Blitz July 6 2021"]
[White "Pham, Le Thao Nguyen"]
[Black "Bilych, Olexiy"]
[WhiteFideId "12401226"]
[BlackFideId "14156504"]
[WhiteElo "2286"]
[BlackElo "2246"]
[Result "0-1"]
[Round "09"]
[TimeControl "180+1"]
[Date "2021.07.06"]
[WhiteClock "0:00:06"]
[BlackClock "0:00:08"]

1. d4 {[%clk 0:02:55]}  Nf6 {[%clk 0:02:59]} 2. Nf3 {[%clk 0:02:54]}  g6 {[%clk 0:02:57]} 3. g3 {[%clk 0:02:51]}  Bg7 {[%clk 0:02:58]} 4. Bg2 {[%clk 0:02:50]}  O-O {[%clk 0:02:58]} 5. O-O {[%clk 0:02:48]}  d6 {[%clk 0:02:58]} 6. b3 {[%clk 0:02:42]}  Nc6 {[%clk 0:02:59]} 7. Bb2 {[%clk 0:02:43]}  e5 {[%clk 0:02:58]} 8. dxe5 {[%clk 0:02:39]}  Ng4 {[%clk 0:02:58]} 9. Nbd2 {[%clk 0:02:36]}  Ngxe5 {[%clk 0:02:57]} 10. Qc1 {[%clk 0:02:35]}  a5 {[%clk 0:02:51]} 11. c4 {[%clk 0:02:15]}  a4 {[%clk 0:02:28]} 12. Nxe5 {[%clk 0:02:15]}  Nxe5 {[%clk 0:02:21]} 13. h3 {[%clk 0:02:13]}  c6 {[%clk 0:02:02]} 14. f4 {[%clk 0:02:01]}  Nd7 {[%clk 0:02:01]} 15. Bxg7 {[%clk 0:02:00]}  Kxg7 {[%clk 0:02:02]} 16. Qc3+ {[%clk 0:01:56]}  Qf6 {[%clk 0:01:53]} 17. Qxf6+ {[%clk 0:01:54]}  Kxf6 {[%clk 0:01:43]} 18. Ne4+ {[%clk 0:01:50]}  Ke7 {[%clk 0:01:43]} 19. Rad1 {[%clk 0:01:49]}  axb3 {[%clk 0:01:40]} 20. axb3 {[%clk 0:01:50]}  Nc5 {[%clk 0:01:39]} 21. Nxc5 {[%clk 0:01:31]}  dxc5 {[%clk 0:01:38]} 22. e4 {[%clk 0:01:31]}  Ra3 {[%clk 0:01:32]} 23. Rf3 {[%clk 0:01:28]}  f6 {[%clk 0:01:28]} 24. Rdd3 {[%clk 0:01:08]}  Be6 {[%clk 0:01:24]} 25. g4 {[%clk 0:01:04]}  b5 {[%clk 0:01:18]} 26. Bf1 {[%clk 0:00:57]}  Rfa8 {[%clk 0:00:57]} 27. f5 {[%clk 0:00:56]}  Bf7 {[%clk 0:00:57]} 28. Rc3 {[%clk 0:00:35]}  b4 {[%clk 0:00:34]} 29. Rcd3 {[%clk 0:00:34]}  g5 {[%clk 0:00:34]} 30. Rfe3 {[%clk 0:00:32]}  Rd8 {[%clk 0:00:33]} 31. e5 {[%clk 0:00:32]}  Rxd3 {[%clk 0:00:30]} 32. exf6+ {[%clk 0:00:31]}  Kxf6 {[%clk 0:00:30]} 33. Rxd3 {[%clk 0:00:31]}  h5 {[%clk 0:00:28]} 34. Kf2 {[%clk 0:00:30]}  hxg4 {[%clk 0:00:28]} 35. hxg4 {[%clk 0:00:31]}  Ke5 {[%clk 0:00:29]} 36. Be2 {[%clk 0:00:27]}  Ra2 {[%clk 0:00:22]} 37. Ke3 {[%clk 0:00:22]}  Rb2 {[%clk 0:00:20]} 38. Kf3 {[%clk 0:00:20]}  Rc2 {[%clk 0:00:17]} 39. Re3+ {[%clk 0:00:20]}  Kd4 {[%clk 0:00:16]} 40. Rd3+ {[%clk 0:00:20]}  Ke5 {[%clk 0:00:16]} 41. Re3+ {[%clk 0:00:19]}  Kf6 {[%clk 0:00:16]} 42. Rd3 {[%clk 0:00:16]}  Be8 {[%clk 0:00:15]} 43. Rd6+ {[%clk 0:00:13]}  Ke7 {[%clk 0:00:15]} 44. Re6+ {[%clk 0:00:13]}  Kd7 {[%clk 0:00:15]} 45. Re3 {[%clk 0:00:13]}  Bf7 {[%clk 0:00:15]} 46. Bd3 {[%clk 0:00:11]}  Rc3 {[%clk 0:00:14]} 47. Be4 {[%clk 0:00:12]}  Rc1 {[%clk 0:00:11]} 48. Bd3 {[%clk 0:00:09]}  Rc3 {[%clk 0:00:10]} 49. f6 {[%clk 0:00:08]}  Kd6 {[%clk 0:00:09]} 50. Bf5 {[%clk 0:00:08]}  Rxe3+ {[%clk 0:00:08]} 51. Kxe3 {[%clk 0:00:08]}  Ke5 {[%clk 0:00:09]} 52. Bd7 {[%clk 0:00:09]}  Kxf6 {[%clk 0:00:09]} 53. Bxc6 {[%clk 0:00:09]}  Ke5 {[%clk 0:00:10]} 54. Bf3 {[%clk 0:00:09]}  Bg6 {[%clk 0:00:10]} 55. Bd1 {[%clk 0:00:09]}  Be4 {[%clk 0:00:10]} 56. Kf2 {[%clk 0:00:06]}  Kd4 {[%clk 0:00:11]} 57. Ke2 {[%clk 0:00:05]}  Kc3 {[%clk 0:00:11]} 58. Ke3 {[%clk 0:00:06]}  Bg6 {[%clk 0:00:09]} 59. Kf3 {[%clk 0:00:05]}  Kd2 {[%clk 0:00:08]} 60. Be2 {[%clk 0:00:06]}  Bc2 {[%clk 0:00:08]} 0-1


[Site "https://www.chess.com"]

[Event "Titled Tuesday Blitz July 6 2021"]
[White "Piesik, Piotr"]
[Black "Alavi, Sayed Javad"]
[WhiteFideId "1136194"]
[BlackFideId "12500607"]
[WhiteElo "2354"]
[BlackElo "2495"]
[Result "0-1"]
[Round "09"]
[TimeControl "180+1"]
[Date "2021.07.06"]
[WhiteClock "0:00:42"]
[BlackClock "0:00:29"]

1. Nf3 {[%clk 0:03:00]}  Nf6 {[%clk 0:02:59]} 2. g3 {[%clk 0:03:00]}  d5 {[%clk 0:02:59]} 3. Bg2 {[%clk 0:03:01]}  c6 {[%clk 0:03:00]} 4. O-O {[%clk 0:03:01]}  Bg4 {[%clk 0:03:01]} 5. d3 {[%clk 0:03:01]}  e6 {[%clk 0:03:01]} 6. Nbd2 {[%clk 0:03:01]}  Nbd7 {[%clk 0:03:01]} 7. e4 {[%clk 0:03:01]}  Be7 {[%clk 0:03:02]} 8. Qe2 {[%clk 0:02:59]}  O-O {[%clk 0:03:02]} 9. h3 {[%clk 0:02:59]}  Bh5 {[%clk 0:02:59]} 10. e5 {[%clk 0:02:58]}  Ne8 {[%clk 0:02:58]} 11. g4 {[%clk 0:02:58]}  Bg6 {[%clk 0:02:58]} 12. Nh2 {[%clk 0:02:58]}  Nc7 {[%clk 0:02:52]} 13. f4 {[%clk 0:02:57]}  f6 {[%clk 0:02:50]} 14. Ndf3 {[%clk 0:02:53]}  fxe5 {[%clk 0:02:44]} 15. Nxe5 {[%clk 0:02:53]}  Nxe5 {[%clk 0:02:37]} 16. Qxe5 {[%clk 0:02:53]}  Bd6 {[%clk 0:02:26]} 17. Qe2 {[%clk 0:02:50]}  Qd7 {[%clk 0:02:24]} 18. Bd2 {[%clk 0:02:45]}  Rae8 {[%clk 0:02:23]} 19. Rae1 {[%clk 0:02:44]}  Rf7 {[%clk 0:02:08]} 20. Qf2 {[%clk 0:02:38]}  b6 {[%clk 0:02:05]} 21. Qg3 {[%clk 0:02:34]}  Ref8 {[%clk 0:02:04]} 22. h4 {[%clk 0:02:32]}  h5 {[%clk 0:01:46]} 23. Nf3 {[%clk 0:02:18]}  Bxf4 {[%clk 0:01:37]} 24. Bxf4 {[%clk 0:02:18]}  Rxf4 {[%clk 0:01:38]} 25. Ne5 {[%clk 0:02:18]}  Rxf1+ {[%clk 0:01:35]} 26. Bxf1 {[%clk 0:02:16]}  Qd6 {[%clk 0:01:33]} 27. c3 {[%clk 0:02:03]}  hxg4 {[%clk 0:01:25]} 28. Qxg4 {[%clk 0:01:59]}  Bf5 {[%clk 0:01:24]} 29. Qg3 {[%clk 0:01:53]}  c5 {[%clk 0:01:14]} 30. Re2 {[%clk 0:01:50]}  Ne8 {[%clk 0:01:08]} 31. Rg2 {[%clk 0:01:49]}  Rf6 {[%clk 0:00:48]} 32. Be2 {[%clk 0:01:48]}  Rh6 {[%clk 0:00:44]} 33. h5 {[%clk 0:01:42]}  Qe7 {[%clk 0:00:43]} 34. Bg4 {[%clk 0:01:38]}  Bxg4 {[%clk 0:00:39]} 35. Qxg4 {[%clk 0:01:36]}  Nf6 {[%clk 0:00:38]} 36. Ng6 {[%clk 0:01:23]}  Qe8 {[%clk 0:00:33]} 37. Qe2 {[%clk 0:00:49]}  Nxh5 {[%clk 0:00:31]} 38. Ne5 {[%clk 0:00:42]}  Nf4 {[%clk 0:00:29]} 0-1


[Site "https://www.chess.com"]

[Event "Titled Tuesday Blitz July 6 2021"]
[White "Potapova, Margarita"]
[Black "Noboa Silva, Kevin"]
[WhiteFideId "14126869"]
[BlackFideId "3618471"]
[WhiteElo "2229"]
[BlackElo "2161"]
[Result "1-0"]
[Round "09"]
[TimeControl "180+1"]
[Date "2021.07.06"]
[WhiteClock "0:01:28"]
[BlackClock "0:00:01"]

1. d4 {[%clk 0:03:00]}  Nf6 {[%clk 0:02:40]} 2. c4 {[%clk 0:03:01]}  e6 {[%clk 0:02:39]} 3. Nc3 {[%clk 0:03:00]}  Bb4 {[%clk 0:02:38]} 4. Qc2 {[%clk 0:03:00]}  b6 {[%clk 0:02:36]} 5. e4 {[%clk 0:02:59]}  c5 {[%clk 0:02:35]} 6. d5 {[%clk 0:02:56]}  Qe7 {[%clk 0:02:35]} 7. Be2 {[%clk 0:02:50]}  b5 {[%clk 0:02:30]} 8. e5 {[%clk 0:02:39]}  Nxd5 {[%clk 0:02:05]} 9. cxd5 {[%clk 0:02:36]}  exd5 {[%clk 0:02:05]} 10. a3 {[%clk 0:02:32]}  Bxc3+ {[%clk 0:02:04]} 11. Qxc3 {[%clk 0:02:31]}  Nc6 {[%clk 0:02:00]} 12. Nf3 {[%clk 0:02:09]}  d4 {[%clk 0:01:57]} 13. Qc2 {[%clk 0:02:05]}  Nxe5 {[%clk 0:01:54]} 14. Nxe5 {[%clk 0:02:05]}  Qxe5 {[%clk 0:01:53]} 15. O-O {[%clk 0:02:06]}  O-O {[%clk 0:01:40]} 16. Bxb5 {[%clk 0:02:02]}  Bb7 {[%clk 0:01:27]} 17. Bd3 {[%clk 0:01:57]}  Rfc8 {[%clk 0:00:58]} 18. b3 {[%clk 0:01:54]}  d5 {[%clk 0:00:48]} 19. Bxh7+ {[%clk 0:01:46]}  Kh8 {[%clk 0:00:47]} 20. Qf5 {[%clk 0:01:43]}  Qe2 {[%clk 0:00:24]} 21. Qh3 {[%clk 0:01:40]}  Re8 {[%clk 0:00:04]} 22. Bd3+ {[%clk 0:01:38]}  Kg8 {[%clk 0:00:04]} 23. Qh7+ {[%clk 0:01:34]}  Kf8 {[%clk 0:00:04]} 24. Bxe2 {[%clk 0:01:29]}  Rxe2 {[%clk 0:00:01]} 25. Qh8+ {[%clk 0:01:29]}  Ke7 {[%clk 0:00:01]} 26. Qh4+ {[%clk 0:01:29]}  f6 {[%clk 0:00:01]} 27. Bf4 {[%clk 0:01:28]} 1-0


[Site "https://www.chess.com"]

[Event "Titled Tuesday Blitz July 6 2021"]
[White "Pridorozhni, Aleksei"]
[Black "Cunjalo, Faris"]
[WhiteFideId "4127870"]
[BlackFideId "14410710"]
[WhiteElo "2565"]
[BlackElo "2234"]
[Result "1/2-1/2"]
[Round "09"]
[TimeControl "180+1"]
[Date "2021.07.06"]
[WhiteClock "0:01:16"]
[BlackClock "0:00:47"]

1. e4 {[%clk 0:03:00]}  c5 {[%clk 0:02:58]} 2. Nc3 {[%clk 0:03:00]}  Nc6 {[%clk 0:02:57]} 3. Bb5 {[%clk 0:03:00]}  Nd4 {[%clk 0:02:58]} 4. Nf3 {[%clk 0:03:00]}  a6 {[%clk 0:02:58]} 5. Bd3 {[%clk 0:03:00]}  g6 {[%clk 0:02:58]} 6. Nxd4 {[%clk 0:02:59]}  cxd4 {[%clk 0:02:59]} 7. Ne2 {[%clk 0:02:59]}  d5 {[%clk 0:03:00]} 8. O-O {[%clk 0:02:54]}  dxe4 {[%clk 0:03:00]} 9. Bxe4 {[%clk 0:02:55]}  Nf6 {[%clk 0:02:57]} 10. Bf3 {[%clk 0:02:55]}  Bg7 {[%clk 0:02:52]} 11. d3 {[%clk 0:02:52]}  O-O {[%clk 0:02:52]} 12. c3 {[%clk 0:02:48]}  dxc3 {[%clk 0:02:46]} 13. bxc3 {[%clk 0:02:49]}  Nd5 {[%clk 0:02:38]} 14. d4 {[%clk 0:02:47]}  b5 {[%clk 0:02:32]} 15. a4 {[%clk 0:02:42]}  Bb7 {[%clk 0:02:31]} 16. axb5 {[%clk 0:02:41]}  axb5 {[%clk 0:02:32]} 17. Rb1 {[%clk 0:02:42]}  Qd7 {[%clk 0:02:16]} 18. Qd3 {[%clk 0:02:29]}  Bc6 {[%clk 0:02:15]} 19. Nf4 {[%clk 0:02:22]}  Nxf4 {[%clk 0:02:05]} 20. Bxf4 {[%clk 0:02:23]}  Bxf3 {[%clk 0:02:03]} 21. Qxf3 {[%clk 0:02:22]}  Rfc8 {[%clk 0:01:58]} 22. Rb3 {[%clk 0:02:18]}  Ra4 {[%clk 0:01:22]} 23. h4 {[%clk 0:02:08]}  h5 {[%clk 0:00:59]} 24. Rfb1 {[%clk 0:02:07]}  Rac4 {[%clk 0:00:53]} 25. Bd2 {[%clk 0:02:06]}  e5 {[%clk 0:00:54]} 26. Rxb5 {[%clk 0:01:59]}  exd4 {[%clk 0:00:54]} 27. Rb7 {[%clk 0:01:53]}  Qe6 {[%clk 0:00:53]} 28. cxd4 {[%clk 0:01:41]}  Rxd4 {[%clk 0:00:53]} 29. Bg5 {[%clk 0:01:40]}  Qd5 {[%clk 0:00:47]} 30. Rb8 {[%clk 0:01:26]}  Rxb8 {[%clk 0:00:43]} 31. Rxb8+ {[%clk 0:01:27]}  Kh7 {[%clk 0:00:44]} 32. Qxd5 {[%clk 0:01:18]}  Rxd5 {[%clk 0:00:45]} 33. Rb7 {[%clk 0:01:18]}  Kg8 {[%clk 0:00:45]} 34. Rb8+ {[%clk 0:01:17]}  Kh7 {[%clk 0:00:46]} 35. Rb7 {[%clk 0:01:17]}  Kg8 {[%clk 0:00:46]} 36. Rb8+ {[%clk 0:01:16]}  Kh7 {[%clk 0:00:47]} 1/2-1/2


[Site "https://www.chess.com"]

[Event "Titled Tuesday Blitz July 6 2021"]
[White "Riazantsev, Alexander"]
[Black "Mortazavi, Ali"]
[WhiteFideId "4125029"]
[BlackFideId "401323"]
[WhiteElo "2497"]
[BlackElo "2339"]
[Result "1-0"]
[Round "09"]
[TimeControl "180+1"]
[Date "2021.07.06"]
[WhiteClock "0:01:01"]
[BlackClock "0:00:12"]

1. d4 {[%clk 0:03:00]}  Nf6 {[%clk 0:02:59]} 2. c4 {[%clk 0:03:01]}  g6 {[%clk 0:03:00]} 3. Nc3 {[%clk 0:03:01]}  Bg7 {[%clk 0:03:01]} 4. e4 {[%clk 0:03:01]}  O-O {[%clk 0:03:02]} 5. Be2 {[%clk 0:03:01]}  d6 {[%clk 0:03:02]} 6. Be3 {[%clk 0:03:02]}  c5 {[%clk 0:03:02]} 7. d5 {[%clk 0:03:02]}  e6 {[%clk 0:03:01]} 8. Nf3 {[%clk 0:03:02]}  exd5 {[%clk 0:02:58]} 9. cxd5 {[%clk 0:03:02]}  Bg4 {[%clk 0:02:57]} 10. Nd2 {[%clk 0:03:02]}  Bxe2 {[%clk 0:02:57]} 11. Qxe2 {[%clk 0:03:01]}  a6 {[%clk 0:02:57]} 12. a4 {[%clk 0:03:01]}  Re8 {[%clk 0:02:57]} 13. O-O {[%clk 0:03:00]}  Nbd7 {[%clk 0:02:57]} 14. h3 {[%clk 0:03:00]}  Rb8 {[%clk 0:02:50]} 15. Bf4 {[%clk 0:02:33]}  Ne5 {[%clk 0:02:24]} 16. a5 {[%clk 0:02:32]}  Nh5 {[%clk 0:02:01]} 17. Bh2 {[%clk 0:02:31]}  Qc7 {[%clk 0:01:52]} 18. f4 {[%clk 0:02:26]}  Nd7 {[%clk 0:01:52]} 19. Nc4 {[%clk 0:02:21]}  Bd4+ {[%clk 0:01:44]} 20. Kh1 {[%clk 0:02:20]}  b5 {[%clk 0:01:38]} 21. axb6 {[%clk 0:02:18]}  Nxb6 {[%clk 0:01:38]} 22. Rxa6 {[%clk 0:02:01]}  Nxc4 {[%clk 0:01:37]} 23. Qxc4 {[%clk 0:02:01]}  Rxb2 {[%clk 0:01:20]} 24. Nb5 {[%clk 0:02:00]}  Qb7 {[%clk 0:01:09]} 25. Nxd6 {[%clk 0:01:56]}  Qd7 {[%clk 0:00:48]} 26. Nxe8 {[%clk 0:01:55]}  Qxe8 {[%clk 0:00:48]} 27. e5 {[%clk 0:01:54]}  Kg7 {[%clk 0:00:37]} 28. d6 {[%clk 0:01:52]}  Rb4 {[%clk 0:00:35]} 29. Qd3 {[%clk 0:01:40]}  Qe6 {[%clk 0:00:27]} 30. f5 {[%clk 0:01:25]}  Qd5 {[%clk 0:00:22]} 31. fxg6 {[%clk 0:01:17]}  hxg6 {[%clk 0:00:21]} 32. Ra7 {[%clk 0:01:16]}  Rb2 {[%clk 0:00:16]} 33. Raxf7+ {[%clk 0:01:10]}  Kh6 {[%clk 0:00:14]} 34. Qf3 {[%clk 0:01:06]}  Qxf3 {[%clk 0:00:14]} 35. R7xf3 {[%clk 0:01:05]}  Rd2 {[%clk 0:00:13]} 36. e6 {[%clk 0:01:05]}  Bf6 {[%clk 0:00:12]} 37. e7 {[%clk 0:01:05]}  Re2 {[%clk 0:00:10]} 38. Rxf6 {[%clk 0:01:03]}  Nxf6 {[%clk 0:00:10]} 39. Rxf6 {[%clk 0:01:03]}  Re1+ {[%clk 0:00:11]} 40. Bg1 {[%clk 0:01:03]}  c4 {[%clk 0:00:12]} 41. Rf8 {[%clk 0:01:01]} 1-0


[Site "https://www.chess.com"]

[Event "Titled Tuesday Blitz July 6 2021"]
[White "Rostovtsev, Dmitry"]
[Black "Shuvalov, Evgenij"]
[WhiteFideId "34278320"]
[BlackFideId "4187237"]
[WhiteElo "2114"]
[BlackElo "2163"]
[Result "1-0"]
[Round "09"]
[TimeControl "180+1"]
[Date "2021.07.06"]
[WhiteClock "0:00:43"]
[BlackClock "0:00:20"]

1. e4 {[%clk 0:03:00]}  a6 {[%clk 0:02:55]} 2. d4 {[%clk 0:02:58]}  b5 {[%clk 0:02:55]} 3. Bd3 {[%clk 0:02:57]}  Bb7 {[%clk 0:02:55]} 4. c3 {[%clk 0:02:57]}  Nf6 {[%clk 0:02:50]} 5. Qe2 {[%clk 0:02:57]}  e6 {[%clk 0:02:46]} 6. Nf3 {[%clk 0:02:56]}  c5 {[%clk 0:02:46]} 7. O-O {[%clk 0:02:53]}  d6 {[%clk 0:02:43]} 8. Nbd2 {[%clk 0:02:53]}  Nbd7 {[%clk 0:02:42]} 9. Rd1 {[%clk 0:02:53]}  Qc7 {[%clk 0:02:41]} 10. Nf1 {[%clk 0:02:53]}  Be7 {[%clk 0:02:40]} 11. Ng3 {[%clk 0:02:53]}  O-O {[%clk 0:02:40]} 12. Bg5 {[%clk 0:02:43]}  h6 {[%clk 0:02:39]} 13. Be3 {[%clk 0:02:43]}  Rfe8 {[%clk 0:02:37]} 14. h3 {[%clk 0:02:39]}  Bf8 {[%clk 0:02:28]} 15. a4 {[%clk 0:02:31]}  b4 {[%clk 0:02:23]} 16. cxb4 {[%clk 0:02:27]}  cxb4 {[%clk 0:02:22]} 17. a5 {[%clk 0:02:28]}  e5 {[%clk 0:02:12]} 18. Rdc1 {[%clk 0:02:21]}  Qd8 {[%clk 0:02:09]} 19. d5 {[%clk 0:02:14]}  g6 {[%clk 0:02:04]} 20. Qd2 {[%clk 0:02:12]}  Kh7 {[%clk 0:02:00]} 21. Qxb4 {[%clk 0:02:12]}  Rb8 {[%clk 0:01:56]} 22. Qd2 {[%clk 0:02:08]}  Ng8 {[%clk 0:01:53]} 23. Qe2 {[%clk 0:01:59]}  Ra8 {[%clk 0:01:48]} 24. b4 {[%clk 0:02:00]}  Ne7 {[%clk 0:01:46]} 25. Rc2 {[%clk 0:01:55]}  f5 {[%clk 0:01:44]} 26. exf5 {[%clk 0:01:54]}  Bxd5 {[%clk 0:01:45]} 27. fxg6+ {[%clk 0:01:54]}  Kh8 {[%clk 0:01:42]} 28. Qd2 {[%clk 0:01:31]}  Bxf3 {[%clk 0:01:36]} 29. gxf3 {[%clk 0:01:26]}  Ng8 {[%clk 0:01:36]} 30. Be4 {[%clk 0:01:14]}  Rb8 {[%clk 0:01:33]} 31. Rac1 {[%clk 0:01:10]}  Qh4 {[%clk 0:01:31]} 32. Kg2 {[%clk 0:01:07]}  Ndf6 {[%clk 0:01:22]} 33. Rc7 {[%clk 0:01:07]}  Re7 {[%clk 0:01:03]} 34. Nf5 {[%clk 0:00:50]}  Qh5 {[%clk 0:00:57]} 35. Nxe7 {[%clk 0:00:49]}  Nxe7 {[%clk 0:00:55]} 36. Qxd6 {[%clk 0:00:40]}  Nxe4 {[%clk 0:00:49]} 37. fxe4 {[%clk 0:00:38]}  Qxg6+ {[%clk 0:00:19]} 38. Qxg6 {[%clk 0:00:36]}  Nxg6 {[%clk 0:00:20]} 39. Rc8 {[%clk 0:00:37]}  Rxb4 {[%clk 0:00:19]} 40. Bxh6 {[%clk 0:00:38]}  Kg8 {[%clk 0:00:18]} 41. Bxf8 {[%clk 0:00:38]}  Nxf8 {[%clk 0:00:19]} 42. Ra8 {[%clk 0:00:39]}  Rxe4 {[%clk 0:00:19]} 43. Rcc8 {[%clk 0:00:39]}  Kf7 {[%clk 0:00:18]} 44. Rxf8+ {[%clk 0:00:38]}  Ke6 {[%clk 0:00:19]} 45. Rf3 {[%clk 0:00:39]}  Ra4 {[%clk 0:00:19]} 46. Rxa6+ {[%clk 0:00:40]}  Kd5 {[%clk 0:00:19]} 47. Re3 {[%clk 0:00:41]}  Kd4 {[%clk 0:00:18]} 48. Ra8 {[%clk 0:00:40]}  Ra2 {[%clk 0:00:19]} 49. a6 {[%clk 0:00:41]}  e4 {[%clk 0:00:19]} 50. a7 {[%clk 0:00:41]}  Kc5 {[%clk 0:00:19]} 51. Rc8+ {[%clk 0:00:41]}  Kb6 {[%clk 0:00:20]} 52. a8=Q {[%clk 0:00:42]}  Rxa8 {[%clk 0:00:20]} 53. Rxa8 {[%clk 0:00:43]} 1-0


[Site "https://www.chess.com"]

[Event "Titled Tuesday Blitz July 6 2021"]
[White "Samunenkov, Ihor"]
[Black "Seul, Georg"]
[WhiteFideId "14187086"]
[BlackFideId "4601653"]
[WhiteElo "2281"]
[BlackElo "2332"]
[Result "1-0"]
[Round "09"]
[TimeControl "180+1"]
[Date "2021.07.06"]
[WhiteClock "0:00:02"]
[BlackClock "0:00:01"]

1. d4 {[%clk 0:03:00]}  Nf6 {[%clk 0:02:59]} 2. g3 {[%clk 0:03:00]}  d5 {[%clk 0:02:56]} 3. Nf3 {[%clk 0:02:59]}  c6 {[%clk 0:02:54]} 4. c4 {[%clk 0:02:59]}  Bf5 {[%clk 0:02:44]} 5. Nc3 {[%clk 0:02:59]}  e6 {[%clk 0:02:43]} 6. Nh4 {[%clk 0:02:58]}  dxc4 {[%clk 0:02:37]} 7. Nxf5 {[%clk 0:02:56]}  exf5 {[%clk 0:02:37]} 8. e3 {[%clk 0:02:57]}  Bd6 {[%clk 0:02:30]} 9. Bxc4 {[%clk 0:02:56]}  O-O {[%clk 0:02:29]} 10. O-O {[%clk 0:02:54]}  Nbd7 {[%clk 0:02:29]} 11. Qd3 {[%clk 0:02:54]}  g6 {[%clk 0:02:27]} 12. Rd1 {[%clk 0:02:51]}  Qe7 {[%clk 0:02:25]} 13. Bd2 {[%clk 0:02:39]}  Rad8 {[%clk 0:02:24]} 14. Be1 {[%clk 0:02:37]}  h5 {[%clk 0:02:23]} 15. h4 {[%clk 0:02:32]}  Ng4 {[%clk 0:02:20]} 16. Qe2 {[%clk 0:02:24]}  Ndf6 {[%clk 0:02:16]} 17. Qf3 {[%clk 0:02:12]}  Rfe8 {[%clk 0:02:15]} 18. Bd3 {[%clk 0:02:08]}  Kg7 {[%clk 0:02:05]} 19. Bc2 {[%clk 0:02:07]}  Ne4 {[%clk 0:02:02]} 20. d5 {[%clk 0:01:41]}  c5 {[%clk 0:01:57]} 21. Ne2 {[%clk 0:01:39]}  Nef6 {[%clk 0:01:37]} 22. Bc3 {[%clk 0:01:35]}  Be5 {[%clk 0:01:37]} 23. Nf4 {[%clk 0:01:29]}  Bxc3 {[%clk 0:01:36]} 24. bxc3 {[%clk 0:01:30]}  Ne5 {[%clk 0:01:35]} 25. Qe2 {[%clk 0:01:06]}  Ne4 {[%clk 0:01:33]} 26. Bxe4 {[%clk 0:00:58]}  fxe4 {[%clk 0:01:33]} 27. Rab1 {[%clk 0:00:57]}  c4 {[%clk 0:01:27]} 28. Kg2 {[%clk 0:00:51]}  Nd3 {[%clk 0:01:22]} 29. Qc2 {[%clk 0:00:39]}  Rd7 {[%clk 0:01:14]} 30. Qa4 {[%clk 0:00:36]}  Nxf4+ {[%clk 0:00:52]} 31. exf4 {[%clk 0:00:36]}  e3 {[%clk 0:00:42]} 32. Qxc4 {[%clk 0:00:27]}  e2 {[%clk 0:00:24]} 33. Re1 {[%clk 0:00:22]}  b6 {[%clk 0:00:23]} 34. Rb2 {[%clk 0:00:19]}  Rc7 {[%clk 0:00:20]} 35. Qd4+ {[%clk 0:00:19]}  Qf6 {[%clk 0:00:20]} 36. Rbxe2 {[%clk 0:00:09]}  Rxe2 {[%clk 0:00:19]} 37. Rxe2 {[%clk 0:00:10]}  Rxc3 {[%clk 0:00:18]} 38. Qd2 {[%clk 0:00:10]}  Rc4 {[%clk 0:00:14]} 39. Re5 {[%clk 0:00:08]}  Qd6 {[%clk 0:00:12]} 40. Qd3 {[%clk 0:00:07]}  Qc5 {[%clk 0:00:12]} 41. d6 {[%clk 0:00:03]}  Qd4 {[%clk 0:00:12]} 42. Rd5 {[%clk 0:00:02]}  Qxd3 {[%clk 0:00:11]} 43. Rxd3 {[%clk 0:00:03]}  Rc8 {[%clk 0:00:11]} 44. Ra3 {[%clk 0:00:01]}  Rd8 {[%clk 0:00:11]} 45. Rxa7 {[%clk 0:00:01]}  Rxd6 {[%clk 0:00:11]} 46. Rb7 {[%clk 0:00:02]}  Rc6 {[%clk 0:00:09]} 47. a4 {[%clk 0:00:02]}  Rd6 {[%clk 0:00:09]} 48. Kf3 {[%clk 0:00:03]}  Rc6 {[%clk 0:00:09]} 49. Kg2 {[%clk 0:00:03]}  Rd6 {[%clk 0:00:09]} 50. f3 {[%clk 0:00:04]}  Rc6 {[%clk 0:00:09]} 51. Kh3 {[%clk 0:00:04]}  Rd6 {[%clk 0:00:08]} 52. g4 {[%clk 0:00:03]}  Rd4 {[%clk 0:00:08]} 53. Kg3 {[%clk 0:00:02]}  Rxa4 {[%clk 0:00:07]} 54. Rxb6 {[%clk 0:00:03]}  Rc4 {[%clk 0:00:07]} 55. gxh5 {[%clk 0:00:01]}  gxh5 {[%clk 0:00:06]} 56. Rb5 {[%clk 0:00:02]}  Kg6 {[%clk 0:00:05]} 57. Rg5+ {[%clk 0:00:02]}  Kh6 {[%clk 0:00:05]} 58. f5 {[%clk 0:00:03]}  Rd4 {[%clk 0:00:05]} 59. Rg8 {[%clk 0:00:02]}  Rc4 {[%clk 0:00:04]} 60. f6 {[%clk 0:00:02]}  Rc6 {[%clk 0:00:02]} 61. Rh8+ {[%clk 0:00:01]}  Kg6 {[%clk 0:00:01]} 62. Rg8+ {[%clk 0:00:02]} 1-0


[Site "https://www.chess.com"]

[Event "Titled Tuesday Blitz July 6 2021"]
[White "Saravana, Krishnan P."]
[Black "Svane, Rasmus"]
[WhiteFideId "5018382"]
[BlackFideId "4657101"]
[WhiteElo "2245"]
[BlackElo "2669"]
[Result "0-1"]
[Round "09"]
[TimeControl "180+1"]
[Date "2021.07.06"]
[WhiteClock "0:01:04"]
[BlackClock "0:00:59"]

1. e4 {[%clk 0:03:00]}  c6 {[%clk 0:03:00]} 2. d4 {[%clk 0:02:59]}  d5 {[%clk 0:03:01]} 3. Nc3 {[%clk 0:02:59]}  dxe4 {[%clk 0:03:01]} 4. Nxe4 {[%clk 0:02:59]}  Nf6 {[%clk 0:03:02]} 5. Nxf6+ {[%clk 0:02:54]}  exf6 {[%clk 0:03:03]} 6. Bc4 {[%clk 0:02:54]}  Bd6 {[%clk 0:03:04]} 7. Qe2+ {[%clk 0:02:54]}  Be7 {[%clk 0:03:04]} 8. Nf3 {[%clk 0:02:51]}  O-O {[%clk 0:03:05]} 9. h3 {[%clk 0:02:48]}  Bd6 {[%clk 0:03:06]} 10. Be3 {[%clk 0:02:48]}  Nd7 {[%clk 0:03:05]} 11. O-O-O {[%clk 0:02:45]}  Nb6 {[%clk 0:03:03]} 12. Bd3 {[%clk 0:02:42]}  Nd5 {[%clk 0:02:55]} 13. Kb1 {[%clk 0:02:35]}  b5 {[%clk 0:02:50]} 14. Nh4 {[%clk 0:02:31]}  Re8 {[%clk 0:02:49]} 15. Qf3 {[%clk 0:02:29]}  a5 {[%clk 0:02:44]} 16. Rhe1 {[%clk 0:02:28]}  Be6 {[%clk 0:02:34]} 17. Qh5 {[%clk 0:02:14]}  g6 {[%clk 0:02:18]} 18. Nxg6 {[%clk 0:02:14]}  fxg6 {[%clk 0:02:18]} 19. Bxg6 {[%clk 0:02:14]}  Re7 {[%clk 0:02:18]} 20. Bd3 {[%clk 0:02:09]}  Qe8 {[%clk 0:02:12]} 21. Qh4 {[%clk 0:02:06]}  Qf7 {[%clk 0:02:08]} 22. Bc1 {[%clk 0:02:03]}  Nb4 {[%clk 0:02:00]} 23. a3 {[%clk 0:01:43]}  Nxd3 {[%clk 0:01:58]} 24. cxd3 {[%clk 0:01:38]}  b4 {[%clk 0:01:58]} 25. a4 {[%clk 0:01:35]}  Bb3 {[%clk 0:01:44]} 26. Rxe7 {[%clk 0:01:30]}  Qxe7 {[%clk 0:01:45]} 27. Qg4+ {[%clk 0:01:25]}  Kh8 {[%clk 0:01:43]} 28. Rg1 {[%clk 0:01:20]}  Re8 {[%clk 0:01:39]} 29. Bh6 {[%clk 0:01:18]}  Bxa4 {[%clk 0:01:31]} 30. Kc1 {[%clk 0:01:18]}  Bb5 {[%clk 0:01:03]} 31. Kc2 {[%clk 0:01:08]}  a4 {[%clk 0:01:01]} 32. Re1 {[%clk 0:01:04]}  b3+ {[%clk 0:00:59]} 0-1


[Site "https://www.chess.com"]